bitfinex/quotes_BTCUSD_20251029
["timestamp","ask_amount","ask_price","bid_price","bid_amount"]
[1761754451105,0.17992478,111250.0,111240.0,0.07905]
[1761754451307,0.73376106,111250.0,111240.0,0.07905]
[1761754451796,0.00123457,111250.0,111240.0,0.07905]
[1761754451952,0.00123457,111250.0,111240.0,0.25884144]
[1761754452529,0.00123457,111250.0,111240.0,0.34866045]
[1761754452726,0.00423457,111250.0,111240.0,0.40250721]
[1761754453013,0.00123457,111250.0,111240.0,0.40150721]
[1761754453216,0.00123457,111250.0,111240.0,0.16886901]
[1761754453420,0.91462464,111250.0,111240.0,0.03203]
[1761754453593,0.17979215,111240.0,111220.0,0.04578]
[1761754453796,0.91342239,111230.0,111220.0,0.04578]
[1761754454002,0.95947239,111230.0,111210.0,0.02295]
[1761754454213,0.91342239,111230.0,111220.0,0.07832]
[1761754454437,0.17982377,111220.0,111210.0,0.02295]
[1761754454667,0.17983994,111210.0,111190.0,0.02851]
[1761754454873,0.73361479,111200.0,111190.0,0.19077882]
[1761754455125,0.91345473,111210.0,111200.0,0.03254]
[1761754455572,0.17983994,111210.0,111200.0,0.07832]
[1761754455791,1.25345473,111210.0,111200.0,0.03254]
[1761754456033,1.25345473,111210.0,111200.0,0.25817611]
[1761754456034,0.0001315,111210.0,111200.0,0.25817611]
[1761754456267,0.0001315,111210.0,111200.0,0.16813901]
[1761754456504,0.91658623,111210.0,111200.0,0.03354]
[1761754457430,0.91658623,111210.0,111200.0,0.07932]
[1761754457661,0.91358623,111210.0,111200.0,0.03254]
[1761754457924,0.17985611,111200.0,111190.0,0.02851]
[1761754458138,0.9134709,111200.0,111190.0,0.02851]
[1761754458375,0.9134709,111200.0,111190.0,0.06105]
[1761754458609,0.9134709,111200.0,111190.0,0.10683]
[1761754459248,0.9134709,111200.0,111190.0,0.10783]
[1761754459476,1.00669318,111200.0,111190.0,0.02951]
[1761754459704,1.00669318,111200.0,111190.0,0.001]
[1761754460352,0.97627318,111200.0,111190.0,0.001]
[1761754461227,0.97627318,111200.0,111190.0,0.03354]
[1761754461412,0.97627318,111200.0,111190.0,0.001]
[1761754461849,0.95265318,111200.0,111190.0,0.03354]
[1761754462050,0.9164709,111200.0,111190.0,0.03354]
[1761754462268,0.9164709,111200.0,111190.0,0.07932]
[1761754462269,0.003,111200.0,111190.0,0.07932]
[1761754462471,0.9164709,111200.0,111190.0,0.07932]
[1761754462682,0.9164709,111200.0,111190.0,0.001]
[1761754462881,0.95265318,111200.0,111190.0,0.001]
[1761754464290,0.003,111200.0,111190.0,0.3490113]
[1761754464466,0.003,111200.0,111190.0,0.39064731]
[1761754464846,0.003,111200.0,111190.0,0.3490113]
[1761754465634,0.00034924,111210.0,111200.0,0.17985611]
[1761754466015,0.00034924,111210.0,111200.0,0.34799512]
[1761754466252,0.73396403,111210.0,111200.0,0.07832]
[1761754466459,0.00034924,111210.0,111200.0,0.03254]
[1761754466666,0.00034924,111210.0,111200.0,0.25817611]
[1761754467459,0.00034924,111210.0,111200.0,0.39209996]
[1761754467664,0.00034924,111210.0,111200.0,0.34799512]
[1761754468389,0.00034924,111210.0,111200.0,0.34999512]
[1761754468596,0.00134924,111210.0,111200.0,0.34999512]
[1761754469777,0.00134924,111210.0,111200.0,0.35099512]
[1761754471391,0.00134924,111210.0,111200.0,0.40408186]
[1761754472518,0.00134924,111210.0,111200.0,0.38792186]
[1761754474601,0.73496403,111210.0,111200.0,0.06516]
[1761754474812,0.91480397,111210.0,111200.0,0.01938]
[1761754475030,0.91480397,111210.0,111200.0,0.06516]
[1761754475697,0.91480397,111210.0,111200.0,0.01938]
[1761754475873,0.91480397,111210.0,111200.0,0.06516]
[1761754476077,0.91480397,111210.0,111200.0,0.01938]
[1761754476257,0.95098625,111210.0,111200.0,0.003]
[1761754476892,0.98140625,111210.0,111200.0,0.003]
[1761754477545,0.95098625,111210.0,111200.0,0.03347]
[1761754477871,0.98103625,111210.0,111200.0,0.003]
[1761754478031,0.95098625,111210.0,111200.0,0.003]
[1761754478263,0.95098625,111210.0,111200.0,0.03347]
[1761754479676,1.11022526,111210.0,111200.0,0.003]
[1761754479902,1.15759526,111210.0,111200.0,0.003]
[1761754480121,1.49759526,111210.0,111200.0,0.003]
[1761754480789,1.49759526,111210.0,111200.0,0.002]
[1761754481011,0.17987229,111190.0,111180.0,0.04936]
[1761754481277,0.17990686,111170.0,111150.0,0.53210762]
[1761754481499,0.91353562,111160.0,111150.0,0.53210762]
[1761754482100,0.9797679,111160.0,111150.0,0.50146762]
[1761754482303,1.11695691,111160.0,111150.0,0.50146762]
[1761754482505,1.06971828,111160.0,111150.0,0.50246762]
[1761754482758,1.06971828,111160.0,111150.0,0.50146762]
[1761754483542,1.12642142,111160.0,111150.0,0.50146762]
[1761754483809,1.07905142,111160.0,111150.0,0.50146762]
[1761754484063,0.00013137,111160.0,111150.0,0.71963339]
[1761754484339,0.00013137,111160.0,111150.0,0.67148663]
[1761754484340,0.00113137,111160.0,111150.0,0.67148663]
[1761754484597,0.00113137,111160.0,111150.0,0.85242365]
[1761754485109,0.00013137,111160.0,111150.0,0.66948663]
[1761754485365,0.00013137,111160.0,111150.0,0.85042365]
[1761754485610,0.00213137,111160.0,111150.0,0.76460464]
[1761754485823,0.00213137,111160.0,111150.0,0.94424266]
[1761754486289,0.00213137,111160.0,111150.0,0.76430564]
[1761754486528,0.00213137,111160.0,111150.0,0.85442365]
[1761754486764,0.00213137,111160.0,111150.0,0.85342365]
[1761754487260,0.00213137,111160.0,111150.0,0.85442365]
[1761754488780,0.18888355,111180.0,111170.0,0.04806]
[1761754489023,1.04849963,111180.0,111170.0,0.00014592]
[1761754489264,3.46591963,111180.0,111170.0,0.00014592]
[1761754491057,3.46791963,111180.0,111170.0,0.00114592]
[1761754491435,3.20852127,111180.0,111170.0,0.00114592]
[1761754491876,3.20652127,111180.0,111170.0,0.00014592]
[1761754492293,3.20952127,111180.0,111170.0,0.00114592]
[1761754492533,0.68793484,111180.0,111170.0,0.00114592]
[1761754492737,1.16215127,111180.0,111170.0,0.00114592]
[1761754492952,1.04228226,111180.0,111170.0,0.03161592]
[1761754493736,1.07233226,111180.0,111170.0,0.00114592]
[1761754493968,1.16215127,111180.0,111170.0,0.00114592]
[1761754494680,1.04228226,111180.0,111170.0,0.03161592]
[1761754494859,1.04228226,111180.0,111170.0,0.00114592]
[1761754495287,1.16215127,111180.0,111170.0,0.00114592]
[1761754495493,3.20952127,111180.0,111170.0,0.00114592]
[1761754495717,1.04228226,111180.0,111170.0,0.03161592]
[1761754496138,1.04228226,111180.0,111170.0,0.07934592]
[1761754496338,1.04228226,111180.0,111170.0,0.00114592]
[1761754496543,0.003,111180.0,111170.0,0.07934592]
[1761754496739,0.003,111180.0,111170.0,0.3618058]
[1761754496907,0.003,111180.0,111170.0,0.83602223]
[1761754497597,0.6632661,111210.0,111190.0,0.1798619]
[1761754497801,0.6632661,111210.0,111200.0,0.07824]
[1761754497974,0.6632661,111210.0,111200.0,0.12597]
[1761754498750,0.65405637,111210.0,111200.0,0.12597]
[1761754498964,0.17983994,111210.0,111200.0,0.12597]
[1761754499364,0.65405637,111210.0,111200.0,0.12597]
[1761754499572,0.65505637,111210.0,111200.0,0.07924]
[1761754500957,0.78105766,111210.0,111200.0,0.001]
[1761754501133,0.18083994,111210.0,111200.0,0.0792]
[1761754501336,0.001,111210.0,111200.0,0.0792]
[1761754501538,0.18083994,111210.0,111200.0,0.09425153]
[1761754501738,0.001,111210.0,111200.0,0.09425153]
[1761754501916,0.001,111210.0,111200.0,0.36392665]
[1761754502115,0.001,111210.0,111200.0,0.34887512]
[1761754503320,0.001,111210.0,111200.0,1.16309155]
[1761754503546,0.001,111210.0,111200.0,0.68887512]
[1761754504128,0.47421643,111220.0,111200.0,0.16801901]
[1761754504487,0.65404164,111220.0,111210.0,0.04773]
[1761754504692,0.69022392,111220.0,111210.0,0.0782]
[1761754504906,0.69022392,111220.0,111210.0,0.03047]
[1761754505462,0.21602222,111210.0,111200.0,0.008]
[1761754505684,0.69023865,111210.0,111200.0,0.001]
[1761754506268,3.12005766,111210.0,111200.0,0.001]
[1761754506450,3.64815409,111210.0,111200.0,0.001]
[1761754506656,0.17990465,111170.0,111160.0,0.09574625]
[1761754506855,0.65412108,111170.0,111160.0,0.09589217]
[1761754507130,0.65412108,111170.0,111160.0,0.12636217]
[1761754507579,0.65412108,111170.0,111160.0,0.07863217]
[1761754508189,0.65412108,111170.0,111160.0,0.07963217]
[1761754508616,0.65512108,111170.0,111160.0,0.08063217]
[1761754509249,0.65512108,111170.0,111160.0,0.18838239]
[1761754509464,0.22507582,111190.0,111160.0,0.305723]
[1761754509673,0.22507582,111190.0,111180.0,0.03315]
[1761754509889,0.69929225,111190.0,111180.0,0.03315]
[1761754510096,0.17988846,111180.0,111170.0,0.04517]
[1761754510304,0.65410489,111180.0,111160.0,0.04916217]
[1761754510505,0.65410489,111180.0,111160.0,0.09579961]
[1761754510712,0.65410489,111180.0,111170.0,0.03315]
[1761754510926,0.52886674,111190.0,111170.0,0.25822461]
[1761754511153,0.52886674,111190.0,111180.0,0.03315]
[1761754511357,0.52886674,111190.0,111180.0,0.07832]
[1761754511358,1.00308317,111190.0,111180.0,0.07832]
[1761754511494,1.00708317,111190.0,111180.0,0.07832]
[1761754511698,1.00708317,111190.0,111180.0,0.086152]
[1761754511928,1.00308317,111190.0,111180.0,0.086152]
[1761754512116,1.00708233,111190.0,111180.0,0.086152]
[1761754512535,0.004,111190.0,111180.0,0.26604046]
[1761754512735,0.65407481,111200.0,111180.0,0.07832]
[1761754512943,0.51985838,111200.0,111190.0,0.04589]
[1761754513142,0.99407481,111200.0,111190.0,0.04589]
[1761754513360,1.04182481,111200.0,111190.0,0.04589]
[1761754513573,0.17988907,111180.0,111160.0,0.3781645]
[1761754513811,0.6541055,111180.0,111160.0,0.28834549]
[1761754513979,0.65412108,111170.0,111160.0,0.04962961]
[1761754514183,0.55607135,111180.0,111170.0,0.0815]
[1761754514503,1.03028778,111180.0,111170.0,0.0815]
[1761754514669,0.17990465,111170.0,111160.0,0.09942961]
[1761754514869,0.60385202,111170.0,111160.0,0.13112961]
[1761754515175,1.03028776,111180.0,111160.0,0.21313565]
[1761754515380,1.03028776,111180.0,111170.0,0.0815]
[1761754515970,0.34,111180.0,111170.0,0.0815]
[1761754516397,0.65408917,111190.0,111170.0,0.0815]
[1761754516571,0.002,111180.0,111170.0,0.0508]
[1761754516785,0.002,111180.0,111170.0,0.05085]
[1761754516983,0.002,111180.0,111170.0,0.29049463]
[1761754517397,0.002,111180.0,111170.0,0.38036364]
[1761754518005,0.66304836,111210.0,111190.0,0.1798715]
[1761754518207,0.17984139,111210.0,111190.0,0.1798715]
[1761754518418,0.66325053,111220.0,111200.0,0.07759]
[1761754518618,0.1890341,111220.0,111210.0,0.0317]
[1761754518827,0.66325053,111220.0,111210.0,0.0815]
[1761754519477,0.1890341,111220.0,111210.0,0.0815]
[1761754519634,0.66325053,111220.0,111210.0,0.0815]
[1761754519835,1.03943281,111220.0,111210.0,0.0815]
[1761754520269,1.03943281,111220.0,111210.0,0.03175]
[1761754520533,3.18330182,111220.0,111210.0,5e-05]
[1761754520734,3.18330182,111220.0,111210.0,0.0001]
[1761754520916,3.18330182,111220.0,111210.0,0.00015]
[1761754521320,3.18330182,111220.0,111210.0,0.0002]
[1761754521552,3.18530182,111220.0,111210.0,0.00025]
[1761754521780,3.18330182,111220.0,111210.0,0.00025]
[1761754522162,3.18830182,111220.0,111210.0,0.00125]
[1761754522531,3.18330182,111220.0,111210.0,0.00025]
[1761754522736,3.19130182,111220.0,111210.0,0.00125]
[1761754523217,3.18430182,111220.0,111210.0,0.00025]
[1761754523421,2.71008539,111220.0,111210.0,0.00025]
[1761754523635,3.18430182,111220.0,111210.0,0.00025]
[1761754523857,3.65851825,111220.0,111210.0,0.00025]
[1761754524067,3.66751824,111220.0,111210.0,1e-08]
[1761754524274,3.67751823,111220.0,111210.0,1e-08]
[1761754524482,4.00256168,111220.0,111210.0,1e-08]
[1761754524927,3.5045036,111180.0,111170.0,0.00025]
[1761754525190,3.8601626,111180.0,111170.0,0.00014593]
[1761754525453,3.8601626,111180.0,111170.0,1e-08]
[1761754525714,3.93317254,111180.0,111170.0,1e-08]
[1761754525938,3.73317254,111180.0,111170.0,1e-08]
[1761754526282,3.24995612,111180.0,111170.0,0.00200001]
[1761754526725,3.24895612,111180.0,111170.0,1e-08]
[1761754526966,2.7997639,111180.0,111170.0,1e-08]
[1761754527206,2.7997639,111180.0,111170.0,0.03170001]
[1761754527207,2.7439239,111180.0,111170.0,0.03170001]
[1761754527420,1.0839239,111180.0,111170.0,0.03170001]
[1761754527645,1.0839239,111180.0,111170.0,0.03175001]
[1761754527883,1.12010618,111180.0,111170.0,5.001e-05]
[1761754528108,1.12010618,111180.0,111170.0,0.00010001]
[1761754528276,1.12010618,111180.0,111170.0,0.00015001]
[1761754528484,1.12210618,111180.0,111170.0,0.03185001]
[1761754528728,1.12210618,111180.0,111170.0,0.03190001]
[1761754528992,0.64588975,111180.0,111170.0,0.03195001]
[1761754529255,0.64788975,111180.0,111170.0,0.03200001]
[1761754529481,0.64788975,111180.0,111170.0,0.00035001]
[1761754529909,0.342,111180.0,111170.0,0.08190001]
[1761754530114,0.18188846,111180.0,111170.0,0.08190001]
[1761754530505,0.002,111180.0,111170.0,0.26180466]
[1761754530710,0.002,111180.0,111170.0,0.73602109]
[1761754531122,0.002,111180.0,111170.0,0.8258401]
[1761754531350,0.002,111180.0,111170.0,0.64593545]
[1761754531554,0.17988017,111190.0,111170.0,0.35162367]
[1761754531719,0.17988017,111190.0,111180.0,0.0815]
[1761754533330,0.17988846,111180.0,111170.0,0.00140001]
[1761754533547,0.17988846,111180.0,111170.0,0.00040001]
[1761754533805,0.17988846,111180.0,111170.0,0.08190001]
[1761754534069,0.17988846,111180.0,111170.0,0.08290001]
[1761754534327,0.51988846,111180.0,111170.0,0.00140001]
[1761754534550,0.99410489,111180.0,111170.0,0.00040001]
[1761754535067,1.00219489,111180.0,111170.0,0.00140001]
[1761754535627,0.51988846,111180.0,111170.0,0.00140001]
[1761754535833,0.002,111180.0,111170.0,0.08290001]
[1761754536086,0.18887694,111200.0,111170.0,0.76943148]
[1761754536432,0.17985611,111200.0,111190.0,0.07759]
[1761754536843,0.55603839,111200.0,111190.0,0.12739]
[1761754536970,0.21603839,111200.0,111190.0,0.12739]
[1761754537646,0.51985611,111200.0,111190.0,0.12739]
[1761754537894,0.1890341,111220.0,111190.0,0.30726229]
[1761754538124,0.18004148,111220.0,111210.0,0.03271]
[1761754538319,0.00021771,111220.0,111210.0,0.07982]
[1761754538532,0.00021771,111220.0,111210.0,0.25965994]
[1761754539648,0.00321771,111220.0,111210.0,0.25965994]
[1761754540912,0.00321771,111220.0,111210.0,0.89279193]
[1761754541333,0.00021771,111220.0,111210.0,0.89379193]
[1761754541570,0.00321771,111220.0,111210.0,0.89384193]
[1761754541807,0.00321771,111220.0,111210.0,0.89284193]
[1761754542019,0.00021771,111220.0,111210.0,0.89284193]
[1761754542257,0.00321771,111220.0,111210.0,0.89384193]
[1761754543145,0.00021771,111220.0,111210.0,0.4196255]
[1761754543356,0.00021771,111220.0,111210.0,0.89384193]
[1761754543615,0.00021771,111220.0,111210.0,0.89284193]
[1761754543837,0.00021771,111220.0,111210.0,0.89484193]
[1761754544284,0.00021771,111220.0,111210.0,0.4206255]
[1761754544499,0.00021771,111220.0,111210.0,0.35152895]
[1761754544727,0.00321771,111220.0,111210.0,0.17168901]
[1761754544958,0.18304148,111220.0,111210.0,0.03476]
[1761754545189,0.18304148,111220.0,111210.0,0.07987]
[1761754545407,0.18004148,111220.0,111210.0,0.07987]
[1761754545615,0.18004148,111220.0,111210.0,0.08087]
[1761754545865,0.18304148,111220.0,111210.0,0.08087]
[1761754546083,1.03344019,111220.0,111210.0,0.00105]
[1761754546291,1.06376019,111220.0,111210.0,0.00105]
[1761754546504,1.06376019,111220.0,111190.0,0.09305]
[1761754546505,0.17985611,111200.0,111190.0,0.03083]
[1761754546975,0.17985443,111210.0,111190.0,0.11065]
[1761754547199,0.17983994,111210.0,111200.0,0.03271]
[1761754547435,0.53203266,111220.0,111210.0,0.001]
[1761754547661,0.53203266,111220.0,111210.0,0.03371]
[1761754547899,0.19203266,111220.0,111210.0,0.07982]
[1761754548376,0.00321771,111220.0,111210.0,0.07982]
[1761754548565,0.00021771,111220.0,111210.0,0.73387637]
[1761754548722,0.00021771,111220.0,111210.0,0.25965994]
[1761754548941,0.00021771,111220.0,111210.0,0.17063901]
[1761754549161,0.00021771,111220.0,111210.0,0.84267937]
[1761754549436,0.00021771,111220.0,111210.0,0.82469538]
[1761754549663,0.00321771,111220.0,111210.0,1.21087765]
[1761754549902,0.00321771,111220.0,111210.0,3.21987172]
[1761754550134,0.00321771,111220.0,111210.0,3.26451438]
[1761754550396,0.00021771,111220.0,111210.0,3.30069666]
[1761754550639,0.1797456,111270.0,111250.0,0.17975924]
[1761754550872,0.0002,111280.0,111260.0,0.24296912]
[1761754551123,0.17992685,111280.0,111270.0,0.03271]
[1761754551584,0.17992681,111280.0,111270.0,0.07982]
[1761754551830,0.0002,111280.0,111270.0,0.07982]
[1761754552096,0.0002,111280.0,111270.0,0.25956296]
[1761754552351,0.17992681,111280.0,111270.0,0.07982]
[1761754552775,0.0002,111280.0,111270.0,0.07982]
[1761754553008,0.17992681,111280.0,111270.0,0.07982]
[1761754553238,0.18192681,111280.0,111270.0,0.07982]
[1761754553574,0.21592524,111270.0,111260.0,0.0305]
[1761754553796,0.17977214,111260.0,111250.0,0.04856]
[1761754554249,0.17977214,111260.0,111250.0,0.12838]
[1761754554470,0.34,111270.0,111250.0,0.39796842]
[1761754554691,0.51974375,111270.0,111260.0,0.07982]
[1761754555133,0.17974375,111270.0,111260.0,0.07982]
[1761754555357,0.91210186,111280.0,111260.0,0.07982]
[1761754555586,0.17975912,111260.0,111250.0,0.04856]
[1761754555832,0.37618228,111270.0,111250.0,0.04856]
[1761754556049,0.51974325,111270.0,111260.0,0.07982]
[1761754556293,0.342,111270.0,111260.0,0.07982]
[1761754556524,0.52083097,111270.0,111260.0,0.07982]
[1761754556761,0.18083097,111270.0,111260.0,0.07982]
[1761754557011,0.18083097,111270.0,111250.0,0.22833357]
[1761754557225,0.17975912,111260.0,111250.0,0.04856]
[1761754557454,0.17975912,111260.0,111250.0,0.09567]
[1761754557679,0.2159257,111270.0,111250.0,0.30815481]
[1761754557953,0.2159257,111270.0,111260.0,0.03271]
[1761754558148,0.9210882,111280.0,111260.0,0.03271]
[1761754558149,0.18891315,111280.0,111260.0,0.25957912]
[1761754558386,0.18891315,111280.0,111270.0,0.03271]
[1761754558850,0.21592524,111270.0,111260.0,0.04711]
[1761754559084,0.17975912,111260.0,111250.0,0.04856]
[1761754559322,0.75627505,111270.0,111250.0,0.27544528]
[1761754559323,0.20384296,111270.0,111250.0,0.27544528]
[1761754559551,0.62073216,111280.0,111260.0,0.03271]
[1761754559779,0.62073216,111280.0,111270.0,0.03271]
[1761754559780,0.61873216,111280.0,111270.0,0.03271]
[1761754559997,0.52192681,111280.0,111270.0,0.07982]
[1761754560203,0.18192681,111280.0,111270.0,0.07982]
[1761754560631,0.18192681,111280.0,111260.0,0.17975904]
[1761754560844,0.0022,111280.0,111270.0,0.07982]
[1761754561056,0.18192681,111280.0,111270.0,0.07982]
[1761754561410,0.17992681,111280.0,111270.0,0.07982]
[1761754562221,0.17974296,111270.0,111260.0,0.001]
[1761754562400,0.91210186,111280.0,111260.0,0.22686912]
[1761754562617,0.91210186,111280.0,111270.0,0.07982]
[1761754562618,0.0022,111280.0,111270.0,0.07982]
[1761754562830,0.18192681,111280.0,111270.0,0.08082]
[1761754563041,0.00350549,111280.0,111270.0,0.26056296]
[1761754563870,0.1812323,111280.0,111270.0,0.08082]
[1761754564079,0.1812323,111280.0,111270.0,0.07982]
[1761754564753,0.00150549,111280.0,111270.0,0.25956296]
[1761754565392,0.00150549,111280.0,111270.0,0.26056296]
[1761754565806,0.00350549,111280.0,111270.0,0.26056296]
[1761754566016,0.00150549,111280.0,111270.0,0.26056296]
[1761754566430,0.00350549,111280.0,111270.0,0.26056296]
[1761754566642,0.00350549,111280.0,111270.0,0.08082]
[1761754566846,0.1832323,111280.0,111270.0,0.03371]
[1761754567049,0.00350549,111280.0,111270.0,0.26056296]
[1761754568083,0.00350549,111280.0,111270.0,1.09306062]
[1761754568713,0.00350549,111280.0,111270.0,0.36088557]
[1761754568919,0.00350549,111280.0,111270.0,1.43306062]
[1761754569131,0.00350549,111280.0,111270.0,3.44201441]
[1761754569338,0.00350549,111280.0,111270.0,3.48819668]
[1761754569545,0.0002,111330.0,111310.0,0.17966528]
[1761754569747,0.0002,111330.0,111320.0,0.24976223]
[1761754570003,0.0002,111330.0,111320.0,0.29659223]
[1761754570422,0.17984609,111330.0,111320.0,0.11693]
[1761754570635,0.17967837,111310.0,111300.0,0.03758]
[1761754570847,0.91185342,111310.0,111300.0,0.03758]
[1761754571063,0.17967837,111310.0,111300.0,0.09651199]
[1761754571273,0.17967837,111310.0,111300.0,0.11693]
[1761754571478,0.91185237,111320.0,111300.0,0.29662451]
[1761754571689,2.0,111320.0,111310.0,0.10478]
[1761754571932,0.20343223,111320.0,111310.0,0.0569]
[1761754572169,0.17967837,111310.0,111300.0,0.03758]
[1761754572388,0.17966223,111320.0,111300.0,0.2651537]
[1761754572605,0.64566352,111320.0,111310.0,0.04558]
[1761754572819,0.21086837,111310.0,111300.0,0.03758]
[1761754573069,0.17967837,111310.0,111300.0,0.0704]
[1761754573292,0.57922451,111320.0,111300.0,0.11828]
[1761754573494,1.39921857,111320.0,111300.0,0.29797276]
[1761754573712,0.0002,111330.0,111310.0,0.1087]
[1761754573918,0.002,111320.0,111310.0,0.25555654]
[1761754574122,0.002,111320.0,111310.0,0.20767654]
[1761754574323,0.002,111320.0,111310.0,0.24149654]
[1761754574666,0.002,111320.0,111310.0,0.28837654]
[1761754574979,0.002,111320.0,111310.0,0.28837837]
[1761754575181,0.002,111320.0,111310.0,0.1087]
[1761754575379,0.51984678,111330.0,111310.0,0.28837837]
[1761754575914,0.3402,111330.0,111320.0,0.03282]
[1761754576038,0.51984609,111330.0,111320.0,0.03282]
[1761754576244,1.27577114,111330.0,111310.0,0.25655733]
[1761754576489,1.27577114,111330.0,111310.0,0.2565573]
[1761754576668,0.54359609,111330.0,111310.0,0.2565573]
[1761754577109,0.54359609,111330.0,111310.0,0.25655831]
[1761754577308,1.27677114,111330.0,111320.0,0.002]
[1761754577506,1.28920342,111330.0,111320.0,0.03482]
[1761754577786,1.28920342,111330.0,111320.0,0.21448223]
[1761754577787,0.37738228,111330.0,111320.0,0.21448223]
[1761754578025,0.55702837,111330.0,111320.0,0.03482]
[1761754578262,0.55702837,111330.0,111320.0,0.002]
[1761754578263,0.62838837,111330.0,111320.0,0.002]
[1761754578479,1.45038243,111330.0,111320.0,0.002]
[1761754578697,0.67059738,111330.0,111320.0,0.03482]
[1761754578908,0.74702738,111330.0,111320.0,0.002]
[1761754579129,1.47920243,111330.0,111320.0,0.002]
[1761754579336,0.21586013,111320.0,111300.0,0.26515399]
[1761754579556,0.17966223,111320.0,111310.0,0.24247837]
[1761754579801,0.0012,111330.0,111320.0,0.17966223]
[1761754580014,0.0002,111330.0,111320.0,0.0807]
[1761754580224,0.0002,111330.0,111320.0,0.26036223]
[1761754580404,0.18084609,111330.0,111320.0,0.03482]
[1761754580665,0.20222609,111330.0,111320.0,0.03482]
[1761754581122,0.0002,111330.0,111320.0,0.26036223]
[1761754581329,0.00128713,111330.0,111320.0,0.26036223]
[1761754581742,0.18093322,111330.0,111320.0,0.0817]
[1761754582219,0.18093322,111330.0,111320.0,0.0807]
[1761754582439,0.18093322,111330.0,111320.0,0.03282]
[1761754582673,0.18193322,111330.0,111320.0,0.03682]
[1761754583408,0.18193322,111330.0,111320.0,0.0847]
[1761754583633,0.00228713,111330.0,111320.0,0.28730401]
[1761754583863,0.18193322,111330.0,111320.0,0.03682]
[1761754584081,0.22684322,111330.0,111320.0,0.004]
[1761754584544,0.18193322,111330.0,111320.0,0.08562]
[1761754585260,0.23234322,111330.0,111320.0,0.005]
[1761754585494,3.47832956,111330.0,111320.0,0.005]
[1761754586631,0.70897223,111330.0,111320.0,0.001]
[1761754586820,1.30751827,111330.0,111320.0,0.002]
[1761754587012,0.52493322,111330.0,111320.0,0.08262]
[1761754587181,0.52093322,111330.0,111320.0,0.10884529]
[1761754587541,0.52293322,111330.0,111320.0,0.03366]
[1761754587675,0.54910322,111330.0,111320.0,0.03366]
[1761754587875,0.59539322,111330.0,111320.0,0.03366]
[1761754588324,0.52093322,111330.0,111320.0,0.21232223]
[1761754588552,0.52093322,111330.0,111320.0,0.26128223]
[1761754588753,0.34128713,111330.0,111320.0,0.26128223]
[1761754589210,0.00128713,111330.0,111320.0,0.37322442]
[1761754589416,0.00128713,111330.0,111320.0,0.35110124]
[1761754589842,0.00228713,111330.0,111320.0,0.35410124]
[1761754590254,0.00128713,111330.0,111320.0,0.35110124]
[1761754590463,0.18093322,111330.0,111320.0,0.08162]
[1761754590670,0.18093322,111330.0,111320.0,0.03866]
[1761754590671,0.18293322,111330.0,111320.0,0.03866]
[1761754590869,0.00328713,111330.0,111320.0,0.26728223]
[1761754591302,0.18293322,111330.0,111320.0,0.08862]
[1761754591512,0.18093322,111330.0,111320.0,0.03366]
[1761754591687,0.18093322,111330.0,111320.0,0.03266]
[1761754591890,0.2972955,111330.0,111320.0,0.003]
[1761754592049,0.22843322,111330.0,111320.0,0.03566]
[1761754592475,0.18193322,111330.0,111320.0,0.03566]
[1761754592833,0.26111322,111330.0,111320.0,0.03566]
[1761754593038,0.26087519,111330.0,111320.0,0.03566]
[1761754593260,0.29705747,111330.0,111320.0,0.03566]
[1761754593696,0.29605747,111330.0,111320.0,0.03266]
[1761754593895,0.17966223,111320.0,111310.0,0.05892]
[1761754594334,0.17966223,111320.0,111310.0,0.09158]
[1761754594701,0.17966223,111320.0,111310.0,0.04262]
[1761754594906,0.17966223,111320.0,111310.0,0.35214374]
[1761754595110,0.17966223,111320.0,111310.0,0.09158]
[1761754595352,0.21234223,111320.0,111310.0,0.00996]
[1761754595551,0.21334223,111320.0,111310.0,0.01396]
[1761754596181,1.45932857,111320.0,111310.0,0.004]
[1761754596581,0.72715352,111320.0,111310.0,0.005]
[1761754597001,1.45932857,111320.0,111310.0,0.005]
[1761754597306,0.72715352,111320.0,111310.0,0.005]
[1761754598294,1.45932857,111320.0,111310.0,0.005]
[1761754598734,3.46760853,111320.0,111310.0,0.005]
[1761754599105,3.2880357,111310.0,111300.0,0.5]
[1761754599309,3.48825471,111310.0,111300.0,0.5]
[1761754599671,3.48886907,111310.0,111300.0,0.5]
[1761754600125,3.27300842,111310.0,111300.0,0.5]
[1761754600338,3.45268679,111310.0,111300.0,0.5]
[1761754601121,3.46096739,111310.0,111300.0,0.5]
[1761754601353,3.45568679,111310.0,111300.0,1e-08]
[1761754601594,3.46396412,111310.0,111300.0,1e-08]
[1761754602105,0.17974296,111270.0,111260.0,0.00085113]
[1761754602306,0.25398296,111270.0,111260.0,0.00085113]
[1761754602846,1.1602193,111270.0,111260.0,0.00085113]
[1761754603500,3.1602193,111270.0,111260.0,0.00085113]
[1761754604136,3.5002193,111270.0,111260.0,0.00085113]
[1761754604348,3.5022193,111270.0,111260.0,0.00185113]
[1761754604566,2.77004425,111270.0,111260.0,0.00185113]
[1761754604775,1.5002193,111270.0,111260.0,0.00085113]
[1761754605012,0.34,111270.0,111260.0,0.07998113]
[1761754605226,0.345,111270.0,111260.0,0.08198113]
[1761754605432,0.51974296,111270.0,111260.0,0.00085113]
[1761754605644,0.51974296,111270.0,111260.0,0.03298113]
[1761754605848,0.34,111270.0,111260.0,0.21274025]
[1761754606048,0.22333702,111280.0,111260.0,0.25974025]
[1761754606283,0.31315603,111280.0,111260.0,0.25974025]
[1761754606499,0.31315603,111280.0,111260.0,0.07998113]
[1761754606683,0.31315603,111280.0,111260.0,0.21274023]
[1761754606884,0.18174296,111270.0,111260.0,0.03398113]
[1761754607019,0.18174296,111270.0,111260.0,0.00185113]
[1761754607225,0.20496296,111270.0,111260.0,0.00085113]
[1761754607422,1.09339108,111280.0,111260.0,0.21274025]
[1761754607623,0.31515603,111280.0,111260.0,0.21274025]
[1761754607823,0.335,111280.0,111270.0,0.07913]
[1761754608038,0.51472681,111280.0,111270.0,0.03213]
[1761754608244,0.51472681,111280.0,111270.0,0.07913]
[1761754608463,0.51472681,111280.0,111270.0,0.03213]
[1761754608902,0.335,111280.0,111270.0,0.03213]
[1761754609098,0.51472681,111280.0,111270.0,0.03213]
[1761754609304,0.51472681,111280.0,111260.0,0.22861025]
[1761754609700,0.51472681,111280.0,111260.0,0.22761025]
[1761754610054,0.17971192,111290.0,111270.0,0.25887296]
[1761754610302,0.18009736,111300.0,111280.0,0.21185681]